Cogmind - Beta 13 @@@ ROGUE MODE // 2024.04.11 @ 19:30:22 Player: Lunace Result: Destroyed by as-53545 with Assembled F-torch Performance ------------- Evolutions (0) 0 Regions Visited (2) 400 Robots Destroyed (8) 40 Value Destroyed (222) 222 Prototype IDs (0) 0 Alien Tech Used (0) 0 Bonus (0) 0 TOTAL SCORE: 662 Bonus ------- None Cogmind --------- Core Integrity 0/250 Matter 295/300 Energy 100/100 System Corruption 0% Temperature Cool (95) Movement Rolling (80) Location -10/Mines Parts ------- > --- POWER (1) -------- (None) > --- PROPULSION (2) --- Wheel Wheel > --- UTILITY (2) ------ Medium Storage Unit Targeting Computer > --- WEAPON (2) ------- Small Laser > --- INVENTORY (10) --- High-capacity Matter Pod (174) Compact Matter Pod (150) Peak State ------------ > --- POWER ------------ Light Ion Engine > --- PROPULSION ------- Light Treads Light Treads > --- UTILITY ---------- Small Storage Unit Targeting Computer > --- WEAPON ----------- Small Laser Grenade Launcher > --- INVENTORY -------- Light Ion Engine Wheel Wheel Small Laser [Rating: 7] Favorites ----------- Power Light Ion Engine Engine Light Ion Engine Propulsion Light Treads Treads Light Treads Wheel Wheel Utility Small Storage Unit Storage Small Storage Unit Processor Targeting Computer Weapon Small Laser Energy Gun Small Laser Launcher Grenade Launcher Build | -11 -10 -10 ------- Run | Yrd Mat Min Slots Evolved . | . . . Power . | . . . Propulsion . | . . . Utility . | . . . Weapon . | . . . Parts Attached 15 | 6 4 5 Power 2 | 1 . 1 Engine 2 | 1 . 1 Core . | . . . Reactor . | . . . Propulsion 4 | 2 . 2 Treads 2 | 2 . . Leg . | . . . Wheel 2 | . . 2 Hover . | . . . Flight . | . . . Utility 3 | 1 1 1 Device . | . . . Storage 2 | 1 . 1 Processor 1 | . 1 . Hackware . | . . . Protection . | . . . Artifact . | . . . Weapon 6 | 2 3 1 Energy Gun 4 | 2 1 1 Energy Cannon . | . . . Ballistic Gun . | . . . Ballistic Cannon . | . . . Launcher 2 | . 2 . Special Weapon . | . . . Impact Weapon . | . . . Slashing Weapon . | . . . Piercing Weapon . | . . . Special Melee Weapon . | . . . Unidentified Prototypes . | . . . Parts Lost 5 | . 4 1 Power 2 | . 1 1 Propulsion 1 | . 1 . Utility . | . . . Weapon 2 | . 2 . Highest Loss Streak 4 | . 4 1 To Critical Strikes . | . . . Average Slot Usage (%) 93 | . 94 85 Engine 13 | . 13 14 Treads 24 | . 27 . Wheel 3 | . . 28 Storage 14 | . 14 14 Processor 12 | . 12 14 Energy Gun 15 | . 15 14 Launcher 8 | . 9 . Naked Turns . | . . . Heaviest Build 14 | 10 12 14 Greatest Support 40 | 40 40 20 Greatest Overweight (x) . | . . . Average Overweight (x) . | . . . Largest Inventory Capacity 10 | 8 8 10 Average Capacity 7 | 7 8 9 Most Carried 4 | 3 4 3 Average Carried 3 | 1 3 1 Final Capacity 10 | 8 8 10 Final Carried 4 | 3 4 2 Class Distribution -------------------- 100% | Mutant Dominant Class ---------------- Mutant | -10/Materials Mutant | -10/Mines Resources | -11 -10 -10 ----------- Run | Yrd Mat Min Matter Collected 506 | 260 44 202 Remotely . | . . . Salvage Created 234 | 76 158 . Parts 16 | 4 12 . Haulers Intercepted . | . . . Recyclers Shooed . | . . . Parts Field Recycled . | . . . Retrieved Matter . | . . . Parts Self-Destructed . | . . . Prevented . | . . . Kills | -11 -10 -10 ------- Run | Yrd Mat Min Combat Hostiles Destroyed 5 | . 5 . AOE 5 | . 5 . Classes Destroyed 4 | 1 3 . Worker 1 | . 1 . Builder 1 | . 1 . Recycler 1 | 1 . . Grunt 5 | . 5 . Best Kill Streak 5 | 1 5 . Combat Bots Only 3 | . 3 . Max Kills in Single Turn 2 | 1 2 . Gunslinging . | . . . Exploded 1 | . 1 . Melee . | . . . Uniques/NPCs Destroyed . | . . . Combat | -11 -10 -10 -------- Run | Yrd Mat Min Hostile Shots Fired 83 | . 72 11 Missed 17 | . 16 1 Damage Taken 834 | . 668 166 Core 259 | . 173 86 Absorbed by Shields . | . . . Core Remaining (%) 100 | 100 . . Volleys Fired 12 | 1 8 3 Largest 2 | 2 2 1 Hottest 80 | 80 80 40 Shots Fired 21 | 2 16 3 Gun 15 | 2 10 3 Cannon . | . . . Launcher 6 | . 6 . Special . | . . . Kinetic . | . . . Thermal 15 | 2 10 3 Explosive 6 | . 6 . Electromagnetic . | . . . Robot Hit Streak 13 | 2 13 5 Robot Miss Streak 1 | . 1 . Penetration Max . | . . . Secondary Targets . | . . . Shots Hit Robots 18 | 2 13 3 Core Hits 15 | 2 11 2 Critical Kills . | . . . Critical Parts Destroyed . | . . . Critical Strikes . | . . . Melee Attacks . | . . . Impact . | . . . Slashing . | . . . Piercing . | . . . Sneak Attacks . | . . . Combat Hostiles . | . . . Follow-up Attacks . | . . . Damage Inflicted 467 | 22 411 34 Guns 142 | 22 86 34 Cannons . | . . . Explosions 325 | . 325 . Melee . | . . . Ramming . | . . . Kinetic . | . . . Thermal 142 | 22 86 34 Explosive 325 | . 325 . Electromagnetic . | . . . Impact . | . . . Slashing . | . . . Piercing . | . . . Highest Corruption . | . . . Average Corruption . | . . . Corruption Purged . | . . . Corruption Blocked . | . . . Overload Shots . | . . . Overflow Damage . | . . . Projectiles . | . . . Explosions . | . . . Melee . | . . . Knockbacks . | . . . Impact . | . . . Kinetic . | . . . Secondary . | . . . Self-Inflicted Damage 217 | . 217 . Shots 6 | . 6 . Rammed . | . . . Targets Rammed . | . . . Kicked . | . . . Crushed . | . . . Highest Temperature 75 | 18 54 75 Average Temperature 25 | 12 22 53 Received Heat Transfer 116 | . 36 80 Siege Activations . | . . . Robots Corrupted . | . . . Combat Hostiles . | . . . Parts Fried . | . . . Impact Corruptions . | . . . Robots Melted . | . . . Combat Hostiles . | . . . Parts Melted . | . . . Heat Transferred 325 | 50 200 75 Parts Sabotaged . | . . . Parts Stolen . | . . . Parts Stripped . | . . . Power Chain Reactions . | . . . Alert | -11 -10 -10 ------- Run | Yrd Mat Min Peak Influence 280 | 5 280 93 Initial 93 | . 3 93 Average 90 | 1 116 92 Maximum Alert Level 1 | . 1 . Low Security (%) 77 | 100 67 100 Level 1 22 | . 32 . Level 2 . | . . . Level 3 . | . . . Level 4 . | . . . Level 5 . | . . . High Security . | . . . Max Security . | . . . Squads Dispatched 2 | . 2 . Investigation 1 | . 1 . Extermination . | . . . Reinforcement 1 | . 1 . Assault . | . . . Garrison . | . . . Intercept . | . . . Searches Triggered . | . . . Construction Impeded . | . . . Haulers Reinforced . | . . . Active Scanning Responses . | . . . Cargo Convoy Interrupts . | . . . Stealth | -11 -10 -10 --------- Run | Yrd Mat Min Distress Signals 2 | . 2 . Communications Jammed . | . . . Distress Signals . | . . . Times Spotted 21 | . 15 6 Peak Tracking Total 8 | . 8 8 Tactical Retreats . | . . . Traps | -11 -10 -10 ------- Run | Yrd Mat Min Traps Triggered 1 | . 1 . Indirectly . | . . . Trap Hack Attempts . | . . . Triggered . | . . . Disarmed . | . . . Reprogrammed . | . . . Reused . | . . . Traps Extracted . | . . . Installed . | . . . Triggered . | . . . Machines | -11 -10 -10 ---------- Run | Yrd Mat Min Machines Disabled 4 | . 4 . Max in Single Turn 2 | . 2 . Machines Repaired . | . . . Machines Dismantled . | . . . Machines Sabotaged . | . . . Overloaded Fab Kills . | . . . Hacking | -11 -10 -10 --------- Run | Yrd Mat Min Machines Accessed 2 | . 2 . Terminals 2 | . 2 . Fabricators . | . . . Repair Stations . | . . . Recycling Units . | . . . Scanalyzers . | . . . Garrison Access . | . . . Total Hacks 5 | . 5 . Successful 2 | . 2 . Failed 3 | . 3 . Catastrophic 2 | . 2 . Database Lockouts . | . . . Manual 5 | . 5 . Terminals 5 | . 5 . Fabricators . | . . . Repair Stations . | . . . Recycling Units . | . . . Scanalyzers . | . . . Garrison Access . | . . . Terminal Hacks 1 | . 1 . Level Access Points 1 | . 1 . Fabricator Hacks . | . . . Repair Station Hacks . | . . . Recycling Unit Hacks . | . . . Scanalyzer . | . . . Garrison Access Hacks . | . . . Unauthorized Hacks 1 | . 1 . Terminals 1 | . 1 . Operators 1 | . 1 . Fabricators . | . . . Repair Stations . | . . . Recycling Units . | . . . Scanalyzers . | . . . Garrison Access . | . . . Data Cores Recovered . | . . . Used . | . . . Hacking Detections 2 | . 2 . Full Trace Events . | . . . Feedback Events . | . . . Feedback Blocked . | . . . Robot Schematics Acquired . | . . . Robots Built . | . . . Authchips . | . . . Time . | . . . Total Robot Build Rating . | . . . Part Schematics Acquired . | . . . Parts Built . | . . . Authchips . | . . . Time . | . . . Total Part Build Rating . | . . . Parts Repaired . | . . . Time . | . . . Parts Recycled . | . . . Recycled Matter . | . . . Retrieved Matter . | . . . Retrieved Components . | . . . Parts Scanalyzed . | . . . Part Schematics Acquired . | . . . Parts Damaged . | . . . Bothacking | -11 -10 -10 ------------ Run | Yrd Mat Min Used RIF Installer . | . . . Robots Hacked . | . . . Non-combat . | . . . Combat . | . . . Robot Hacks Applied . | . . . Relay Couplers Released . | . . . Fabnet Peak Effective % . | . . . Robots Rewired . | . . . Allies Hacked . | . . . Hacks Repelled . | . . . Allies | -11 -10 -10 -------- Run | Yrd Mat Min Total Allies . | . . . Largest Group . | . . . Highest-Rated Group . | . . . Highest-Rated Ally . | . . . Total Orders . | . . . Ally Attacks . | . . . Total Damage . | . . . Kills . | . . . Allies Corrupted . | . . . Allies Melted . | . . . Intel | -11 -10 -10 ------- Run | Yrd Mat Min Robot Analysis Total . | . . . Derelict Logs Recovered 1 | . . 1 Drone Launches . | . . . Drone Recoveries . | . . . Exploration | -11 -10 -10 ------------- Run | Yrd Mat Min Turns Passed 412 | 86 286 40 Spaces Moved 216 | 45 146 25 Core 2 | 2 . . Treads 189 | 43 146 . Legs . | . . . Wheels 25 | . . 25 Hover . | . . . Flight . | . . . Fastest Speed 50 | 50 160 80 Average Speed 149 | 155 160 80 Slowest Speed 160 | 160 160 80 Overloaded Moves . | . . . Propulsion Burnouts . | . . . Robots Hopped . | . . . Cave-ins Triggered . | . . . Exploration Rate (%) 15 | 5 30 10 Regions Visited 2 Branch Regions 1 Pre-discovered Areas . | . . . Known Exits Taken . | . . . Unknown Exits Taken 2 | 1 1 . Scrap Searched . | . . . Spaces Dug . | . . . Terrain Destroyed 76 | . 76 . Melee . | . . . Projectile . | . . . AOE 76 | . 76 . Terrain Rammed . | . . . Walls Destroyed . | . . . Machines Disabled . | . . . Actions | -11 -10 -10 --------- Run | Yrd Mat Min Total 279 | 56 181 42 Wait 29 | 2 23 4 Move 214 | 44 145 25 Hop . | . . . Pick Up 6 | 3 . 3 Fast Attach 8 | 6 2 . Attach 3 | . . 3 Detach 1 | . 1 . Swap 4 | . 2 2 Drop 2 | . . 2 Fire 12 | 1 8 3 Melee . | . . . Ram . | . . . Kick . | . . . Crush . | . . . Escape Stasis . | . . . Rewire . | . . . Trap . | . . . Miscellaneous . | . . . Route ------- -11/Scrapyard -10/Materials (discovered 4 exits: Mat x3 / [*Min]) -10/Mines History --------- Turn | Location | Event 15 | -11/Scrapyard | Discovered new exit (range 16) 87 | -11/Scrapyard | Entered Materials 263 | -10/Materials | Identified exit to Materials 296 | -10/Materials | Discovered new exit (range 13) 311 | -10/Materials | Build established: Mutant 371 | -10/Materials | Core integrity fell below 50% 373 | -10/Materials | Entered Mines 381 | -10/Mines | Assembled infested the area 381 | -10/Mines | Learned Materials trap positions 400 | -10/Mines | Lost 4 parts (1p1n2w) 410 | -10/Mines | Core integrity fell below 20% 413 | -10/Mines | Destroyed by as-53545 with Assembled F-torch Last Messages --------------- 00363_ Lgt. Ion Engine destroyed. 00365_ Lgt. Treads destroyed. 00365_ R-06 Scavenger collects Lgt. Ion Engine. 00369_ Sml. Laser destroyed. LOCATION=UNKNOWN GOAL=ESCAPE Something is scanning the area. 00376_ Dropped Lgt. Treads. 00381_ ALERT: Infestation in the mines, dispatching Demolisher response squad. 00381_ Acquired derelict log, extracted data. Data stored: Materials trap records. 00383_ Extracted 76 matter. 00383_ Acquired Com. Matter Pod. 00384_ Extracted 76 matter. 00385_ Acquired Hcp. Matter Pod. 00386_ Extracted 50 matter. 00389_ Acquired Med. Storage Unit. 00391_ Dropped Sml. Storage Unit. 00412_ Lgt. Ion Engine destroyed. Map ----- +----------------------------------------------------+ | ????????????????????????????????????????? | | ????????????????????????????????????????? | | ????????????????????????????????????????? | | ????????????????????????????????????????? | | ????????????????????????????????????????? | | ????????????????????????????????????????? | | ????????????????????????????????????????? | | ????????????????????????????????????????? | | ????????????????????????????????????????? | | ????????????????????????????????????????? | | ????????????????????????????????????????? | | ????????????????????????????????????????? | | ????????????????????????????????????????? | | ????????????????????????????????????????? | | ????????????????????????????????????????? | | ????????????????????????????????????????? | | ????????????????????????????????????????? | | ?????????########???????????????????????? | | ?????????# #???????????????????????? | | ?????????# ! #???????????????????????? | | ?????????# #???????????????????????? | | ?????????# !! #???????????????????????? | | ???????### ! #???????????????????????? | | ??????## #???????????????????????? | | ??????# #######??????????????????????? | | ?????## #?## @##?????????????????????? | | ?????# = #### a ## ""?????????????? | | ?????# a ""?????????????? | | ?????# a ??????????? | | ?????## ## aa ??????????? | | ??????# ### a ??????????? | | ??????# #?#### ???????????? | | ??????# #?????### ???????????? | | ??????# #????????# ???????????? | | ??????######?????????# #???????????? | | ??????????????????????# #????????????? | | ???????????????????????# ##????????????? | | ????????????????????????###?????????????? | | ????????????????????????????????????????? | | ????????????????????????????????????????? | | ????????????????????????????????????????? | | ????????????????????????????????????????? | | ????????????????????????????????????????? | | ????????????????????????????????????????? | | ????????????????????????????????????????? | | ????????????????????????????????????????? | | ????????????????????????????????????????? | | ????????????????????????????????????????? | | ????????????????????????????????????????? | | ????????????????????????????????????????? | +----------------------------------------------------+ Best States ------------- Heat Dissipation 25 Energy Generation 10 Energy Capacity 125 Matter Stores 300 Matter Capacity 300 Sight Range 16 Terrain Scan Density 10 Evasion (%) 44 Targeting Accuracy 5 Recoil Reduction 2 Item Schematics ----------------- None Robot Schematics ------------------ None Fabricated ------------ Nothing Alien Tech Used ----------------- None Achievements -------------- None Challenges ------------ None Game ------ Seed ShieldMicroCoupler Manual? 0 Play Time 00:04:34 Cumulative 57.5 hours Start 2024.04.11 @ 19:26:30 End 2024.04.11 @ 19:30:22 Sessions 1 Manual Loads 0 Difficulty Rogue Special Mode None Game No. 64 Rogue 59 Adventurer 5 Explorer 0 Win Type - Total 2 Types 1/0/0/1/0/0/0/0/0 Lore% 29 Gallery% 50 Achievement% 41 Wizard Run 0 Options --------- Layout 1 ASCII 0 Keyboard 0 Movement Mouse Keybinds 0 Fullscreen 1 Font 24/Terminus Map View 50x35 Zoom Use 0% Tactical HUD 1 Map Filters NONE Filters NONE Steam 1 RUN: 54aa330d-7454-4f59-a849-7f867e014651